bitfinex/quotes_BTCUSD_20220201
["timestamp","ask_amount","ask_price","bid_price","bid_amount"]
[1643713716480,0.13068556,38272.0,38271.0,0.31092055]
[1643713717078,0.13068556,38272.0,38271.0,0.55186284]
[1643713717281,0.13066978,38276.0,38271.0,0.54750207]
[1643713717282,0.06532946,38276.0,38271.0,0.54750207]
[1643713717482,0.1151,38284.0,38279.0,0.03036245]
[1643713717682,0.17647704,38285.0,38280.0,0.31534593]
[1643713717880,0.13063669,38286.0,38283.0,0.03036245]
[1643713718081,0.13312136,38287.0,38283.0,0.03036245]
[1643713718282,0.130643,38285.0,38283.0,0.03036245]
[1643713718541,0.065319,38286.0,38283.0,0.03036245]
[1643713718727,0.13063721,38286.0,38283.0,0.03036245]
[1643713723686,0.38011523,38286.0,38283.0,0.03036245]
[1643713723891,0.13063721,38286.0,38283.0,0.03036245]
[1643713724491,0.18570104,38281.0,38275.0,0.40167328]
[1643713724689,0.06532596,38280.0,38278.0,0.03036245]
[1643713725387,0.06532596,38280.0,38278.0,0.04885642]
[1643713725590,0.06532596,38280.0,38278.0,0.03036245]
[1643713725793,0.43846937,38280.0,38278.0,0.03036245]
[1643713726032,0.19598996,38280.0,38278.0,0.03036245]
[1643713731382,0.13065153,38284.0,38278.0,0.03036245]
[1643713731584,0.35632804,38289.0,38278.0,0.03036245]
[1643713731587,0.06532282,38282.0,38278.0,0.03036245]
[1643713731785,0.06532282,38282.0,38273.0,0.37090027]
[1643713731982,0.130648,38286.0,38281.0,0.03036245]
[1643713732181,0.130648,38286.0,38273.0,0.34981292]
[1643713732382,0.130648,38286.0,38284.0,0.03036245]
[1643713733384,0.130648,38286.0,38281.0,0.03036245]
[1643713733629,0.130648,38286.0,38284.0,0.03036245]
[1643713733829,0.130648,38286.0,38281.0,0.09261028]
[1643713734032,0.130648,38286.0,38284.0,0.03036245]
[1643713734334,0.37942879,38286.0,38284.0,0.03036245]
[1643713734530,0.130648,38286.0,38284.0,0.03036245]
[1643713735333,0.54403477,38287.0,38284.0,0.03036245]
[1643713735334,0.41337804,38287.0,38284.0,0.03036245]
[1643713736034,0.41337804,38287.0,38281.0,0.09261028]
[1643713736235,0.41328773,38287.0,38282.0,0.03036245]
[1643713736634,0.065324,38286.0,38282.0,0.03036245]
[1643713737278,0.06683953,38286.0,38282.0,0.03036245]
[1643713737478,0.06683953,38286.0,38284.0,0.03036245]
[1643713737680,0.065326,38285.0,38282.0,0.03036245]
[1643713737981,0.06532883,38284.0,38280.0,0.03036245]
[1643713738280,0.31414235,38284.0,38280.0,0.03036245]
[1643713738479,0.31159294,38284.0,38280.0,0.03036245]
[1643713738678,0.30938622,38284.0,38280.0,0.03036245]
[1643713738880,0.065332,38283.0,38280.0,0.03036245]
[1643713739081,0.13126941,38281.0,38280.0,0.03036245]
[1643713739584,0.130658,38283.0,38280.0,0.03036245]
[1643713739880,0.065326,38285.0,38280.0,0.03036245]
[1643713740280,0.065326,38285.0,38282.0,0.03036245]
[1643713740683,0.1209114,38284.0,38282.0,0.03036245]
[1643713742332,0.12242559,38284.0,38282.0,0.03036245]
[1643713742933,0.24528255,38283.0,38282.0,0.03036245]
[1643713743131,0.24528255,38283.0,38273.0,0.696]
[1643713743334,0.24528255,38283.0,38279.0,0.03036245]
[1643713743335,0.13066208,38281.0,38279.0,0.03036245]
[1643713743533,0.24736385,38280.0,38277.0,0.01957619]
[1643713744132,0.24736385,38280.0,38275.0,0.03036245]
[1643713745188,0.24736385,38280.0,38279.0,0.03036245]
[1643713745388,0.196002,38281.0,38277.0,0.07668179]
[1643713745588,0.196002,38281.0,38278.0,0.03036245]
[1643713745589,0.06533451,38279.0,38278.0,0.03036245]
[1643713745991,0.065331,38281.0,38278.0,0.03036245]
[1643713746194,0.00151419,38284.0,38278.0,0.03036245]
[1643713746389,0.00151419,38284.0,38273.0,0.42]
[1643713746592,0.00151419,38284.0,38282.0,0.03036245]
[1643713746789,0.00151419,38284.0,38282.0,0.13448916]
[1643713746991,0.00151419,38284.0,38281.0,0.03036245]
[1643713747189,0.22780904,38284.0,38281.0,0.03036245]
[1643713747690,0.22780904,38284.0,38278.0,0.03036245]
[1643713747891,0.22780904,38284.0,38281.0,0.03036245]
[1643713748094,0.22780904,38284.0,38274.0,0.01983343]
[1643713748095,0.12378471,38283.0,38277.0,0.08307886]
[1643713748292,0.12378471,38283.0,38275.0,0.03036245]
[1643713748536,0.37379209,38283.0,38277.0,0.03036245]
[1643713748729,0.25444371,38283.0,38277.0,0.03036245]
[1643713748930,0.25444371,38283.0,38276.0,0.01885533]
[1643713749229,0.49795939,38283.0,38279.0,0.03028587]
[1643713749428,0.06532939,38282.0,38279.0,0.03028587]
[1643713749630,0.13067076,38281.0,38273.0,0.50109638]
[1643713749831,0.065337,38279.0,38274.0,0.03028587]
[1643713750134,0.065337,38279.0,38273.0,0.42]
[1643713750533,0.13067319,38279.0,38273.0,0.42]
[1643713750832,0.06533619,38279.0,38278.0,0.03028587]
[1643713752279,0.06684655,38279.0,38278.0,0.03028587]
[1643713752581,0.06684655,38279.0,38273.0,0.42]
[1643713752582,0.065337,38278.0,38273.0,0.42]
[1643713753180,0.18323463,38277.0,38273.0,0.42]
[1643713753381,0.31391163,38277.0,38273.0,0.44172466]
[1643713753779,0.31391163,38277.0,38273.0,0.42]
[1643713753981,0.55601492,38277.0,38273.0,0.42]
[1643713754182,0.31391163,38277.0,38273.0,0.42]
[1643713755081,0.31391163,38277.0,38273.0,0.45028587]
[1643713755285,0.31391163,38277.0,38273.0,0.42]
[1643713756925,0.1960151,38277.0,38273.0,0.42]
[1643713757126,0.00150664,38276.0,38273.0,0.42]
[1643713757327,0.065338,38275.0,38273.0,0.42]
[1643713757729,0.065338,38275.0,38273.0,0.45028587]
[1643713758928,0.00150664,38276.0,38273.0,0.45028587]
[1643713766836,0.00150664,38276.0,38273.0,0.44528587]
[1643713775180,0.13737995,38276.0,38273.0,0.44528587]
[1643713777780,0.00150664,38276.0,38273.0,0.44528587]
[1643713779435,0.00150664,38276.0,38274.0,0.27065749]
[1643713779637,0.00150664,38276.0,38275.0,0.352941]
[1643713779834,0.00150664,38276.0,38275.0,0.7063786]
[1643713781235,0.00150664,38276.0,38275.0,0.405441]
[1643713781742,0.00150664,38276.0,38275.0,0.0525]
[1643713782137,0.00150664,38276.0,38273.0,0.44528587]
[1643713782779,0.14094812,38275.0,38273.0,0.44528587]
[1643713786836,0.14094812,38275.0,38273.0,0.42]
[1643713787036,0.20628727,38275.0,38273.0,0.42]
[1643713787234,0.20628727,38275.0,38273.0,0.44528587]
[1643713787833,0.20628727,38275.0,38273.0,0.42028587]
[1643713788231,0.20628727,38275.0,38273.0,0.41528587]
[1643713788833,0.06533915,38275.0,38273.0,0.41528587]
[1643713789034,0.00150664,38276.0,38273.0,0.41528587]
[1643713790381,0.06683759,38276.0,38273.0,0.41528587]
[1643713792984,0.06654118,38276.0,38273.0,0.41528587]
[1643713793642,0.06532319,38281.0,38274.0,0.352941]
[1643713793839,0.17647055,38285.0,38275.0,0.3060956]
[1643713794041,0.001,38289.0,38277.0,0.065311]
[1643713794238,0.001,38289.0,38288.0,0.07768194]
[1643713795437,0.06630872,38289.0,38288.0,0.07768194]
[1643713796638,0.06630872,38289.0,38283.0,0.39922156]
[1643713796839,0.06630872,38289.0,38282.0,0.1162]
[1643713797041,0.06630872,38289.0,38283.0,0.01849285]
[1643713797288,0.06630872,38289.0,38275.0,0.3727285]
[1643713797590,0.06630872,38289.0,38279.0,0.2305055]
[1643713797591,0.001,38289.0,38279.0,0.2305055]
[1643713797785,0.001,38289.0,38282.0,0.29982454]
[1643713797987,0.001,38289.0,38283.0,0.0833756]
[1643713798388,0.06531187,38288.0,38283.0,0.0833756]
[1643713798989,0.14149543,38286.0,38283.0,0.10478437]
[1643713800196,0.20681366,38286.0,38283.0,0.10478437]
[1643713801040,0.20681366,38286.0,38283.0,0.02140877]
[1643713801236,0.24266774,38285.0,38283.0,0.02140877]
[1643713801438,0.17817496,38280.0,38275.0,0.1141]
[1643713801636,0.47777165,38280.0,38270.0,1.12355887]
[1643713801833,0.47777165,38280.0,38270.0,0.7725]
[1643713802136,0.17817496,38280.0,38277.0,0.09582134]
[1643713803136,0.44251693,38280.0,38277.0,0.09582134]
[1643713803335,0.17817496,38280.0,38277.0,0.09582134]
[1643713803737,0.06532238,38281.0,38277.0,0.09582134]
[1643713803937,0.43618887,38287.0,38277.0,0.09582134]
[1643713804777,0.06531901,38283.0,38277.0,0.09582134]
[1643713804979,0.13063981,38287.0,38277.0,0.33420146]
[1643713805182,0.11202444,38288.0,38277.0,0.33420146]
[1643713805386,0.17747055,38289.0,38277.0,0.33420146]
[1643713805387,0.001,38289.0,38277.0,0.33420146]
[1643713805580,0.001,38289.0,38281.0,0.22596491]
[1643713805982,0.001,38289.0,38286.0,0.37467765]
[1643713809434,0.001,38292.0,38288.0,1.1]
[1643713809640,0.001,38292.0,38286.0,0.37467765]
[1643713809641,0.17647055,38300.0,38294.0,0.5088952]
[1643713809835,0.17647055,38300.0,38295.0,0.405441]
[1643713810032,0.004,38301.0,38295.0,0.405441]
[1643713810234,0.004,38301.0,38295.0,0.0525]
[1643713810432,0.004,38301.0,38295.0,0.31747175]
[1643713811331,0.06928545,38301.0,38295.0,0.31747175]
[1643713811530,0.004,38301.0,38295.0,0.31747175]
[1643713811730,0.004,38301.0,38296.0,0.23984104]
[1643713811931,0.004,38301.0,38297.0,0.652941]
[1643713812280,0.004,38301.0,38297.0,0.88760424]
[1643713812481,0.004,38301.0,38297.0,0.58760424]
[1643713813288,0.004,38301.0,38297.0,0.98760424]
[1643713813482,0.004,38301.0,38297.0,0.58760424]
[1643713815082,0.004,38301.0,38297.0,0.352941]
[1643713815486,0.004,38301.0,38296.0,0.0525]
[1643713816737,0.004,38301.0,38297.0,0.352941]
[1643713816941,0.004,38301.0,38297.0,0.652941]
[1643713817439,0.004,38301.0,38294.0,0.5088952]
[1643713817840,0.004,38301.0,38294.0,0.09858728]
[1643713818339,0.004,38301.0,38292.0,0.1675]
[1643713818340,0.06528671,38300.0,38292.0,0.115]
[1643713818544,0.23015735,38294.0,38290.0,0.3844]
[1643713818839,0.23015735,38294.0,38289.0,0.32664296]
[1643713819339,0.23015735,38294.0,38283.0,0.1237]
[1643713819543,0.42606181,38294.0,38288.0,0.09367819]
[1643713819988,0.42606181,38294.0,38286.0,0.02039734]
[1643713820192,0.54136981,38294.0,38286.0,0.02039734]
[1643713820391,0.49136981,38294.0,38283.0,0.45861041]
[1643713820588,0.26903861,38293.0,38283.0,0.45861041]
[1643713820789,0.24939595,38293.0,38283.0,0.45861041]
[1643713820988,0.42607058,38294.0,38283.0,0.45861041]
[1643713821195,0.24761123,38293.0,38289.0,0.09115646]
[1643713821390,0.06530447,38291.0,38289.0,0.09115646]
[1643713821890,0.24231473,38290.0,38289.0,0.09115646]
[1643713822090,0.06530447,38291.0,38289.0,0.09115646]
[1643713824337,0.2519554,38290.0,38280.0,1.046]
[1643713824538,0.06531309,38288.0,38280.0,0.3705]
[1643713824738,0.245602,38287.0,38279.0,0.3991]
[1643713824938,0.295602,38287.0,38285.0,0.02195601]
[1643713825138,0.05,38287.0,38285.0,0.02195601]
[1643713825339,0.19594518,38289.0,38285.0,0.02195601]
[1643713825539,0.13063036,38288.0,38286.0,0.09437261]
[1643713826940,0.06531266,38289.0,38286.0,0.09437261]
[1643713828595,0.24252999,38288.0,38286.0,0.09437261]
[1643713828794,0.13062181,38288.0,38286.0,0.09437261]
[1643713830898,0.1306221,38287.0,38286.0,0.09437261]
[1643713832532,0.13052936,38287.0,38286.0,0.09437261]
[1643713834142,0.13052936,38287.0,38281.0,0.31874987]
[1643713834340,0.19584236,38287.0,38281.0,0.31874987]
[1643713835586,0.19584236,38287.0,38282.0,0.07661543]
[1643713835786,0.06531501,38285.0,38282.0,0.07661543]
[1643713837187,0.06531501,38285.0,38280.0,0.02164951]
[1643713837393,0.43672995,38284.0,38280.0,0.02164951]
[1643713837590,0.48672995,38284.0,38280.0,0.02164951]
[1643713837789,0.23313435,38284.0,38269.0,0.1242]
[1643713837991,0.06533096,38281.0,38269.0,0.1242]
[1643713838189,0.26860722,38278.0,38271.0,0.31378566]
[1643713838390,0.45177099,38278.0,38273.0,0.49331738]
[1643713838636,0.065332,38277.0,38273.0,0.49331738]
[1643713839438,0.13066389,38277.0,38273.0,0.49331738]
[1643713839636,0.25845149,38276.0,38273.0,0.49331738]
[1643713839838,0.25845149,38276.0,38273.0,0.31528587]
[1643713841242,0.30845149,38276.0,38273.0,0.31528587]
[1643713843289,0.37379049,38276.0,38273.0,0.31528587]
[1643713843491,0.06534,38275.0,38273.0,0.31528587]
[1643713843693,0.3156261,38274.0,38273.0,0.31528587]
[1643713843993,0.3656261,38274.0,38273.0,0.31528587]
[1643713844393,0.11533901,38274.0,38273.0,0.31528587]
[1643713844590,0.34613996,38274.0,38273.0,0.31528587]
[1643713844991,0.11533901,38274.0,38273.0,0.31528587]
[1643713845792,0.06533901,38274.0,38273.0,0.31528587]
[1643713847940,0.06533901,38274.0,38273.0,0.54753123]
[1643713848339,0.06533901,38274.0,38273.0,0.31528587]
[1643713849341,0.06533901,38274.0,38273.0,0.55055239]
[1643713850088,0.06533901,38274.0,38273.0,0.31528587]
[1643713854234,0.11533901,38274.0,38273.0,0.31528587]
[1643713854836,0.16533901,38274.0,38273.0,0.31528587]
[1643713855738,0.11533901,38274.0,38273.0,0.31528587]
[1643713856738,0.16533901,38274.0,38273.0,0.31528587]
[1643713856938,0.20670763,38274.0,38273.0,0.31528587]
[1643713857142,0.16533901,38274.0,38273.0,0.31528587]
[1643713857589,0.19877299,38274.0,38273.0,0.31528587]
[1643713857992,0.16533901,38274.0,38273.0,0.31528587]
[1643713859591,0.20189556,38274.0,38273.0,0.31528587]
[1643713860193,0.16533901,38274.0,38273.0,0.31528587]
[1643713863938,0.16627455,38274.0,38273.0,0.31528587]
[1643713866698,0.4050063,38274.0,38273.0,0.31528587]
[1643713866899,0.16627455,38274.0,38273.0,0.31528587]
[1643713867705,0.61877455,38274.0,38273.0,0.31528587]
[1643713868300,0.21877455,38274.0,38273.0,0.31528587]
[1643713868939,0.28412255,38274.0,38273.0,0.31528587]
[1643713869439,0.38412255,38274.0,38273.0,0.31528587]
[1643713869838,0.65579592,38274.0,38273.0,0.31528587]
[1643713870038,0.38412255,38274.0,38273.0,0.31528587]
[1643713881691,0.14796011,38270.0,38268.0,0.01956747]
[1643713881893,0.24796011,38270.0,38262.0,0.1219]
[1643713882291,0.34796011,38270.0,38262.0,0.1219]
[1643713882997,0.28182629,38265.0,38261.0,0.0094652]
[1643713883192,0.39718329,38265.0,38261.0,0.0094652]
[1643713883391,0.05,38264.0,38261.0,0.0094652]
[1643713884251,0.115356,38264.0,38261.0,0.0094652]
[1643713887294,0.05,38264.0,38263.0,0.41157858]
[1643713888091,0.05,38264.0,38263.0,0.30915509]
[1643713888694,0.06535579,38265.0,38263.0,0.30915509]
[1643713888994,0.065348,38267.0,38264.0,0.22543532]
[1643713889196,0.131677,38274.0,38265.0,0.09060957]
[1643713889396,0.131677,38274.0,38272.0,0.09588493]
[1643713889397,0.001,38274.0,38272.0,0.09588493]
[1643713889596,0.001,38274.0,38273.0,0.63558481]
[1643713889795,0.001,38274.0,38273.0,1.26292577]
[1643713890001,0.001,38274.0,38273.0,1.66836677]
[1643713890198,0.001,38274.0,38273.0,1.56340096]
[1643713890397,0.001,38291.0,38273.0,1.56340096]
[1643713890398,0.24180545,38289.0,38273.0,1.56340096]
[1643713890600,0.17649745,38289.0,38276.0,0.1]
[1643713890802,0.17649745,38289.0,38279.0,0.10404337]
[1643713891054,0.001,38291.0,38285.0,0.29781486]
[1643713891246,0.001,38291.0,38290.0,0.49166577]
[1643713893848,0.001,38291.0,38290.0,0.40374024]
[1643713894047,0.001,38291.0,38284.0,0.0525]
[1643713894249,0.001,38291.0,38285.0,0.418238]
[1643713894448,0.001,38291.0,38285.0,0.470738]
[1643713895290,0.001,38291.0,38289.0,0.35515307]
[1643713895589,0.001,38291.0,38290.0,0.23330746]
[1643713895791,0.001,38291.0,38289.0,0.35515307]
[1643713898654,0.001,38291.0,38288.0,0.24578317]
[1643713898851,0.06629926,38291.0,38285.0,0.0525]
[1643713899055,0.065304,38290.0,38285.0,0.0525]
[1643713899253,0.165304,38290.0,38278.0,0.2254768]
[1643713899452,0.05,38289.0,38279.0,0.5]
[1643713899951,0.05,38289.0,38277.0,0.22784239]
[1643713899952,0.065312,38289.0,38286.0,0.01959313]
[1643713900154,0.065312,38289.0,38282.0,0.08760779]
[1643713900454,0.13062394,38287.0,38282.0,0.08760779]
[1643713900653,0.18062394,38287.0,38282.0,0.08760779]
[1643713901258,0.23062394,38287.0,38282.0,0.08760779]
[1643713901451,0.18062394,38287.0,38282.0,0.08760779]
[1643713901851,0.27065615,38285.0,38282.0,0.08760779]
[1643713902492,0.13062517,38285.0,38282.0,0.08760779]
[1643713902893,0.1,38284.0,38282.0,0.08760779]
[1643713903492,0.15133676,38283.0,38282.0,0.08760779]
[1643713903695,0.15133676,38283.0,38278.0,0.01954746]
[1643713903696,0.13063661,38282.0,38278.0,0.01954746]
[1643713904092,0.13063661,38282.0,38275.0,0.23375694]
[1643713904293,0.13063661,38282.0,38280.0,0.32935543]
[1643713904495,0.995,38301.0,38280.0,0.32935543]
[1643713904496,0.03696085,38290.0,38280.0,0.32935543]
[1643713904694,0.06530506,38288.0,38280.0,0.32935543]
[1643713905292,0.06530506,38288.0,38287.0,0.10151074]
[1643713905694,0.001,38291.0,38287.0,0.10151074]
[1643713906141,0.06629854,38291.0,38287.0,0.10151074]
[1643713907940,0.13160054,38291.0,38287.0,0.10151074]
[1643713910988,0.06629854,38291.0,38274.0,0.130611]
[1643713911189,0.13060858,38287.0,38278.0,0.1525]
[1643713911394,0.13060858,38287.0,38284.0,0.0200383]
[1643713912189,0.13060858,38287.0,38283.0,0.10182282]
[1643713912789,0.13051529,38287.0,38283.0,0.10182282]
[1643713913088,0.06521171,38287.0,38273.0,0.34180887]
[1643713913290,0.06521171,38287.0,38270.0,0.900123]
[1643713913291,0.12907684,38281.0,38270.0,0.900123]
[1643713913553,0.19594288,38285.0,38273.0,0.065314]
[1643713913746,0.19594288,38285.0,38280.0,0.01899048]
[1643713914149,0.06531178,38282.0,38275.0,0.09239571]
[1643713914347,0.06531178,38282.0,38276.0,0.24364479]
[1643713914545,0.06531178,38282.0,38276.0,0.59658579]
[1643713914745,0.13061744,38288.0,38276.0,0.59658579]
[1643713914945,0.11327007,38286.0,38281.0,0.09014624]
[1643713915144,0.16327007,38286.0,38281.0,0.09014624]
[1643713916146,0.06530872,38285.0,38281.0,0.09014624]
[1643713917393,0.06530872,38285.0,38279.0,0.39012746]
[1643713917595,0.26739339,38281.0,38278.0,0.0187969]
[1643713917795,0.33270611,38281.0,38278.0,0.0187969]
[1643713918194,0.33270611,38281.0,38270.0,0.23199951]
[1643713918494,0.38270611,38281.0,38274.0,0.0757017]
[1643713918696,0.15461227,38279.0,38274.0,0.0757017]
[1643713918893,0.06532311,38278.0,38274.0,0.0757017]
[1643713920499,0.06532311,38278.0,38274.0,0.30395358]
[1643713920700,0.06532311,38278.0,38274.0,0.0757017]
[1643713920899,0.06532311,38278.0,38274.0,0.30142365]
[1643713921741,0.06531154,38280.0,38275.0,0.352941]
[1643713921947,0.06531154,38280.0,38276.0,0.2342582]
[1643713924796,0.06531154,38280.0,38274.0,0.09370845]
[1643713925295,0.06531154,38280.0,38274.0,0.34477263]
[1643713925296,0.11531154,38280.0,38274.0,0.34477263]
[1643713925496,0.11531154,38280.0,38274.0,0.32642094]
[1643713925696,0.11531154,38280.0,38274.0,0.30841419]
[1643713926197,0.11531154,38280.0,38274.0,0.0757017]
[1643713926896,0.11531154,38280.0,38274.0,0.30721105]
[1643713927297,0.11531154,38280.0,38279.0,0.4173576]
[1643713928549,0.11531154,38280.0,38274.0,0.30721105]
[1643713928741,0.06531154,38280.0,38274.0,0.30721105]
[1643713929342,0.06531154,38280.0,38275.0,0.01902993]
[1643713929541,0.06531154,38280.0,38276.0,0.40476908]
[1643713930041,0.06531154,38280.0,38277.0,0.23457288]
[1643713930242,0.06531154,38280.0,38277.0,0.23047007]
[1643713930643,0.06531154,38280.0,38276.0,0.40476908]
[1643713931443,0.06531154,38280.0,38277.0,0.23317973]
[1643713931746,0.001,38291.0,38278.0,0.352941]
[1643713931943,0.001,38291.0,38280.0,0.09739546]
[1643713932143,0.001,38291.0,38281.0,0.2553443]
[1643713932596,0.001,38291.0,38286.0,0.34900274]
[1643713932796,0.13060652,38289.0,38287.0,0.10174909]
[1643713932997,0.066304,38291.0,38287.0,0.10174909]
[1643713933197,0.05,38288.0,38287.0,0.10174909]
[1643713933397,0.065304,38290.0,38287.0,0.10174909]
[1643713933998,0.065304,38290.0,38287.0,0.32840595]
[1643713934198,0.065304,38290.0,38287.0,0.10174909]
[1643713934399,0.06530278,38289.0,38287.0,0.10174909]
[1643713935106,0.06530278,38289.0,38287.0,0.3273048]
[1643713935299,0.06530278,38289.0,38288.0,0.22892633]
[1643713935499,0.001,38291.0,38288.0,0.22892633]
[1643713937547,0.0009011,38291.0,38288.0,0.22892633]
[1643713940990,0.0009011,38291.0,38287.0,0.10174909]
[1643713941792,0.0662051,38291.0,38287.0,0.10174909]
[1643713942190,0.1162051,38291.0,38287.0,0.10174909]
[1643713942589,0.1162051,38291.0,38283.0,0.22541352]
[1643713942790,0.06530699,38289.0,38282.0,0.30733997]
[1643713943189,0.11530699,38289.0,38283.0,0.22909099]
[1643713943644,0.11530699,38289.0,38282.0,0.30733997]
[1643713943841,0.11530699,38289.0,38285.0,0.07887218]
[1643713944242,0.06530699,38289.0,38285.0,0.07887218]
[1643713946340,0.11530699,38289.0,38285.0,0.07887218]
[1643713946942,0.18061199,38289.0,38285.0,0.07887218]
[1643713947589,0.11530699,38289.0,38285.0,0.07887218]
[1643713948891,0.06530699,38289.0,38285.0,0.07887218]
[1643713949091,0.06530699,38289.0,38286.0,0.352941]
[1643713949394,0.13060908,38290.0,38287.0,0.23100638]
[1643713949593,0.0009011,38291.0,38288.0,0.352941]
[1643713949791,0.0009011,38291.0,38285.0,0.31952743]
[1643713949992,0.0009011,38291.0,38285.0,0.31426154]
[1643713950194,0.0009011,38291.0,38285.0,0.07887218]
[1643713950392,0.0009011,38291.0,38285.0,0.30814947]
[1643713950702,0.0009011,38291.0,38286.0,0.470734]
[1643713950893,0.0009011,38291.0,38286.0,1.856734]
[1643713951351,0.0009011,38291.0,38286.0,0.470734]
[1643713951749,0.0009011,38291.0,38286.0,0.405441]
[1643713953356,0.0009011,38291.0,38286.0,0.42422283]
[1643713953752,0.0009011,38291.0,38286.0,0.405441]
[1643713955393,0.0009011,38291.0,38286.0,0.42382067]
[1643713955793,0.0009011,38291.0,38286.0,0.405441]
[1643713955997,0.0009011,38291.0,38287.0,0.065287]
[1643713956194,0.0009011,38291.0,38288.0,0.405441]
[1643713956900,0.00248865,38291.0,38288.0,0.40682078]
[1643713957094,0.00248865,38291.0,38288.0,0.63773183]
[1643713957695,0.00248865,38291.0,38288.0,0.40682078]
[1643713957896,0.0009011,38291.0,38288.0,0.405441]
[1643713958096,0.00248865,38291.0,38288.0,0.00137978]
[1643713958746,0.06778665,38291.0,38288.0,0.00137978]
[1643713958946,0.13149097,38291.0,38285.0,0.07887218]
[1643713959147,0.24284344,38290.0,38288.0,0.00137978]
[1643713959446,0.18307852,38291.0,38288.0,0.00137978]
[1643713959645,0.130605,38290.0,38288.0,0.00137978]
[1643713960245,0.130605,38290.0,38285.0,0.07887218]
[1643713960447,0.195908,38290.0,38287.0,0.00137979]
[1643713960650,0.1959025,38290.0,38287.0,0.00137979]
[1643713960847,0.06529866,38289.0,38287.0,0.00137979]
[1643713961347,0.06529866,38289.0,38285.0,0.07887218]
[1643713961546,0.06529866,38289.0,38286.0,0.00137983]
[1643713962599,0.11529866,38289.0,38285.0,0.07887218]
[1643713962799,0.06688625,38289.0,38286.0,0.00137985]
[1643713963802,0.06529866,38289.0,38285.0,0.07887218]
[1643713964100,0.06529866,38289.0,38286.0,0.00137985]
[1643713964101,0.06688625,38289.0,38286.0,0.00137985]
[1643713965102,0.06529866,38289.0,38287.0,0.352941]
[1643713965302,0.06688625,38289.0,38286.0,0.00137985]
[1643713965503,0.06688625,38289.0,38287.0,0.352941]
[1643713965705,0.06688625,38289.0,38286.0,0.00137985]
[1643713966149,0.06529866,38289.0,38287.0,0.352941]
[1643713966345,0.06529866,38289.0,38286.0,0.00137985]
[1643713966543,0.06688625,38289.0,38287.0,0.352941]
[1643713966743,0.06688625,38289.0,38286.0,0.24481267]
[1643713966944,0.06688625,38289.0,38286.0,0.00137985]
[1643713967145,0.06688625,38289.0,38287.0,0.352941]
[1643713967542,0.06688625,38289.0,38285.0,0.07887218]
[1643713967543,0.06529866,38289.0,38285.0,0.07887218]
[1643713967749,0.06529866,38289.0,38286.0,0.00137983]
[1643713967944,0.06529866,38289.0,38287.0,0.352941]
[1643713968343,0.06529866,38289.0,38286.0,0.00137983]
[1643713968548,0.06529866,38289.0,38285.0,0.07887218]
[1643713968752,0.06529866,38289.0,38286.0,0.00137985]
[1643713968945,0.06688625,38289.0,38286.0,0.00137985]
[1643713969896,0.06529866,38289.0,38285.0,0.07887218]
[1643713970096,0.06688625,38289.0,38286.0,0.00137985]
[1643713971097,0.06529866,38289.0,38285.0,0.07887218]
[1643713971303,0.06688625,38289.0,38286.0,0.00137985]
[1643713971902,0.06688625,38289.0,38287.0,0.352941]
[1643713972300,0.06529866,38289.0,38287.0,0.352941]
[1643713972500,0.06529866,38289.0,38286.0,0.40682083]
[1643713972700,0.06529866,38289.0,38286.0,0.05387983]
[1643713973102,0.11529866,38289.0,38286.0,0.00137983]
[1643713973303,0.47924507,38289.0,38286.0,0.00137983]
[1643713973551,0.47924507,38289.0,38286.0,0.00137985]
[1643713973748,0.48083266,38289.0,38286.0,0.00137985]
[1643713974155,0.19592107,38288.0,38286.0,0.00137985]
[1643713974547,0.05,38287.0,38283.0,0.10083676]
[1643713974749,0.31107232,38286.0,38285.0,0.00137987]
[1643713975749,0.31107232,38286.0,38275.0,0.1182]
[1643713975949,0.06530468,38283.0,38275.0,0.1182]
[1643713976149,0.06530468,38283.0,38276.0,0.352941]
[1643713976350,0.05,38283.0,38275.0,0.352941]
[1643713976554,0.05,38283.0,38276.0,0.35021384]
[1643713976750,0.05,38283.0,38277.0,0.352941]
[1643713976949,0.40755559,38284.0,38277.0,0.352941]
[1643713977150,0.05,38283.0,38278.0,0.00138012]
[1643713977402,0.00158772,38282.0,38278.0,0.00138012]
[1643713978305,0.05,38283.0,38282.0,0.07448614]
[1643713978903,0.115309,38283.0,38282.0,0.07448614]
[1643713981852,0.13060935,38284.0,38282.0,0.07448614]
[1643713982051,0.13219703,38284.0,38282.0,0.07448614]
[1643713982653,0.13219703,38284.0,38283.0,0.25]
[1643713982853,0.13219703,38284.0,38282.0,0.07448614]
[1643713983052,0.13060935,38284.0,38282.0,0.07448614]
[1643713983252,0.13060935,38284.0,38282.0,0.07586613]
[1643713984155,0.13060935,38284.0,38282.0,0.07448614]
[1643713984799,0.13052705,38284.0,38283.0,0.352941]
[1643713991248,0.06675748,38285.0,38283.0,0.73166446]
[1643713991449,0.06528979,38287.0,38284.0,1.7966359]
[1643713991647,0.06528979,38287.0,38285.0,0.352941]
[1643713991849,0.06528979,38287.0,38285.0,0.405441]
[1643713992295,0.06528979,38287.0,38285.0,0.66792267]
[1643713992896,0.06528979,38287.0,38285.0,0.405441]
[1643713993919,0.06528979,38287.0,38285.0,0.66992397]
[1643713994096,0.06528979,38287.0,38285.0,2.05592397]
[1643713994297,0.06528979,38287.0,38285.0,2.12121297]
[1643713994501,0.06528979,38287.0,38286.0,0.26982479]
[1643713994698,0.00145443,38288.0,38286.0,0.62276579]
[1643713994899,0.00145443,38288.0,38287.0,2.588941]
[1643713995099,0.0009011,38291.0,38288.0,1.46700193]
[1643713995299,0.0009011,38291.0,38290.0,0.89638145]
[1643713995498,0.0009011,38291.0,38290.0,1.30182245]
[1643713995899,0.05118493,38292.0,38290.0,0.75182245]
[1643713996150,0.05118493,38292.0,38291.0,0.58325562]
[1643713996349,0.05118493,38292.0,38291.0,0.62679801]
[1643713996550,0.05118493,38292.0,38291.0,0.63156511]
[1643713996748,0.05118493,38292.0,38291.0,0.405441]
[1643713997550,0.05118493,38292.0,38291.0,0.62879171]
[1643713998751,0.05118493,38292.0,38291.0,0.62974313]
[1643714002116,0.05118493,38292.0,38291.0,0.405441]
[1643714002516,0.05118493,38292.0,38291.0,0.0525]
[1643714002715,0.05118493,38292.0,38291.0,0.62696693]
[1643714003118,0.05118493,38292.0,38291.0,0.405441]
[1643714003316,0.05118493,38292.0,38291.0,0.63114829]
[1643714003559,0.05118493,38292.0,38291.0,0.405441]
[1643714003953,0.05118493,38292.0,38291.0,0.63386611]
[1643714005255,0.00145265,38293.0,38291.0,0.63386611]
[1643714005457,0.00145265,38293.0,38292.0,1.10561833]
[1643714005760,0.00145265,38293.0,38292.0,2.84455933]
[1643714005956,0.13056874,38296.0,38292.0,1.99455933]